Cogmind - Beta 9.6 @@@ ROGUE MODE // 2020.09.02 @ 10:11:01 Player: Cracklepappy Result: Destroyed by G-47 Trooper with Particle Gun Performance ------------- Evolutions (1) 500 Regions Visited (6) 1200 Robots Destroyed (103) 515 Value Destroyed (2377) 2377 Prototype IDs (28) 560 Alien Tech Used (0) 0 Bonus (62) 62 TOTAL SCORE: 5214 Bonus ------- High Alert Combat Kills 62 Follower Combat Kills 60 Aligned with FarCom 300 Friendly Fire -360 Cogmind --------- Core Integrity 0/400 Matter 193/300 Energy 265/265 System Corruption 5% Temperature Cool (11) Movement Treading (212) Ox3 Location -8/Mines Parts ------- > --- POWER (1) -------- Reinforced Ion Engine > --- PROPULSION (2) --- Improved Treads Advanced Treads > --- UTILITY (4) ------ Humpback Humpback > --- WEAPON (2) ------- Improved Assault Rifle > --- INVENTORY (44) --- Heavy Ion Engine Light Deuterium Engine Light Treads Light Treads Light Treads Advanced Treads Advanced Treads Medium Storage Unit Large Storage Unit Large Storage Unit High-capacity Storage Unit High-capacity Storage Unit Humpback Medium Matter Pod (100) High-capacity Matter Pod (200) Gravity Neutralizing Apparatus Improved Terrain Scanner Advanced Weapon Cycler 8R-AWN's Armor/TH 8R-AWN's Armor/EX AS-neutralizer No. 17b Heavy Assault Rifle Heavy Assault Rifle Improved Assault Rifle XL Autogun Array 8R-AWN's Boregun 8R-AWN's Boregun Improved Light Cannon AWS/Autocannon EMP Blaster Rocket Launcher Rocket Launcher Rocket Launcher Rocket Launcher Mining Laser Longsword +1 Peak State ------------ > --- POWER ------------ Improved Ion Engine > --- PROPULSION ------- Improved Treads Advanced Treads > --- UTILITY ---------- Humpback Humpback > --- WEAPON ----------- Improved Assault Rifle 8R-AWN's Boregun > --- INVENTORY -------- Heavy Ion Engine Light Deuterium Engine Light Treads Light Treads Light Treads Advanced Treads Advanced Treads Medium Storage Unit Large Storage Unit Large Storage Unit High-capacity Storage Unit High-capacity Storage Unit Humpback Medium Matter Pod Medium Matter Pod High-capacity Matter Pod Gravity Neutralizing Apparatus Improved Terrain Scanner Advanced Weapon Cycler 8R-AWN's Armor/TH 8R-AWN's Armor/EX AS-neutralizer No. 17b Heavy Assault Rifle Heavy Assault Rifle Improved Assault Rifle XL Autogun Array 8R-AWN's Boregun Improved Light Cannon Improved Light Cannon AWS/Autocannon Rocket Launcher Rocket Launcher Rocket Launcher Rocket Launcher Mining Laser Longsword +1 [Rating: 43] Favorites ----------- Power Improved Ion Engine Engine Improved Ion Engine Propulsion Advanced Treads Treads Advanced Treads Wheel Wheel Utility Small Storage Unit Device Heat Sink Storage Small Storage Unit Processor Seismic Analyzer Protection Light Armor Plating Weapon Improved Assault Rifle Energy Gun Small Laser Energy Cannon Advanced Beam Cannon Ballistic Gun Improved Assault Rifle Ballistic Cannon Improved Light Cannon Launcher Rocket Launcher Special Weapon Mining Laser Slashing Weapon Longsword +1 Build | -11 -10 -10 -9 -9 -9 -8 ------- Run | Scr Mat Min Mat Min Exi Min Slots Evolved 2 | . . . 2 . . . Power . | . . . . . . . Propulsion . | . . . . . . . Utility 2 | . . . 2 . . . Weapon . | . . . . . . . Parts Attached 73 | 7 8 4 40 3 8 3 Power 5 | 1 . . 3 . . 1 Engine 5 | 1 . . 3 . . 1 Core . | . . . . . . . Reactor . | . . . . . . . Propulsion 12 | 2 . 1 9 . . . Treads 9 | . . . 9 . . . Leg . | . . . . . . . Wheel 3 | 2 . 1 . . . . Hover . | . . . . . . . Flight . | . . . . . . . Utility 19 | 2 1 . 12 1 3 . Device 3 | . . . 3 . . . Storage 11 | 1 1 . 5 1 3 . Processor 1 | 1 . . . . . . Hackware . | . . . . . . . Protection 4 | . . . 4 . . . Artifact . | . . . . . . . Weapon 37 | 2 7 3 16 2 5 2 Energy Gun 2 | 1 1 . . . . . Energy Cannon 1 | . . . 1 . . . Ballistic Gun 24 | 1 5 2 11 1 4 . Ballistic Cannon 1 | . . . . . . 1 Launcher 2 | . . . . 1 . 1 Special Weapon 6 | . 1 1 4 . . . Impact Weapon . | . . . . . . . Slashing Weapon 1 | . . . . . 1 . Piercing Weapon . | . . . . . . . Special Melee Weapon . | . . . . . . . Unidentified Prototypes 4 | . 1 . 2 . 1 . Parts Lost 15 | . . 2 10 2 . 1 Power 3 | . . . 2 . . 1 Propulsion 3 | . . 1 2 . . . Utility 3 | . . . 2 1 . . Weapon 6 | . . 1 4 1 . . Highest Loss Streak 5 | . . 1 5 1 . 1 Average Slot Usage (%) 88 | . 99 97 97 97 60 76 Engine 11 | . 14 14 10 11 11 10 Treads 17 | . . . 20 22 22 22 Wheel 5 | . 28 25 1 . . . Device 2 | . . . 6 . . . Storage 24 | . 21 28 22 29 24 22 Protection 7 | . . . 12 11 2 . Ballistic Gun 17 | . 26 26 21 16 . 18 Launcher 1 | . . . . 5 . 2 Naked Turns . | . . . . . . . Heaviest Build 177 | 11 19 19 90 97 173 177 Greatest Support 45 | 20 20 20 45 45 45 45 Greatest Overweight (x) 3 | . . 1 1 2 3 3 Average Overweight (x) . | . . . . 1 2 3 Largest Inventory Capacity 44 | 6 8 8 20 26 44 44 Average Capacity 20 | 5 7 8 11 23 39 44 Most Carried 44 | 6 8 8 20 26 44 44 Average Carried 18 | 3 7 7 10 22 31 43 Final Capacity 44 | 6 8 8 20 26 44 44 Final Carried 44 | 6 8 8 20 26 44 44 Class Distribution -------------------- 48% | Mutant 46% | Hauler-Mutant 5% | Scavenger-Mutant Dominant Class ---------------- Mutant | -10/Materials Mutant | -10/Mines Mutant | -9/Materials Hauler-Mutant | -9/Mines Hauler-Mutant | -9/Exiles Hauler-Mutant | -8/Mines Resources | -11 -10 -10 -9 -9 -9 -8 ----------- Run | Scr Mat Min Mat Min Exi Min Matter Collected 2869 | 278 224 230 1172 212 581 172 Remotely 192 | . . . 192 . . . Salvage Created 3528 | 167 451 223 2054 234 109 290 Parts 228 | 6 29 19 127 20 8 19 Haulers Intercepted 2 | . . . 2 . . . Recyclers Shooed 3 | . 3 . . . . . Parts Field Recycled . | . . . . . . . Retrieved Matter . | . . . . . . . Parts Self-Destructed . | . . . . . . . Prevented . | . . . . . . . Kills | -11 -10 -10 -9 -9 -9 -8 ------- Run | Scr Mat Min Mat Min Exi Min Combat Hostiles Destroyed 79 | . 7 8 44 11 1 8 Melee 1 | . . . . . 1 . Guns 70 | . 7 8 44 7 . 4 AOE 8 | . . . . 4 . 4 Classes Destroyed 11 | 2 4 1 4 . . . Worker 5 | . 1 1 2 . . 1 Builder 3 | . 1 . 2 . . . Tunneler 6 | 4 . 1 . 1 . . Hauler 2 | . . . 2 . . . Recycler 3 | 1 1 . 1 . . . Watcher 5 | . 1 . 4 . . . Swarmer 29 | . . 6 11 8 . 4 Grunt 36 | . 7 2 22 2 . 3 Brawler 4 | . . . 2 1 . 1 Duelist 1 | . . . 1 . . . Sentry 8 | . . . 8 . . . Best Kill Streak 11 | 3 4 3 11 6 1 5 Combat Bots Only 7 | . 3 3 7 5 1 4 Max Kills in Single Turn 4 | 1 1 1 2 4 1 4 Gunslinging 1 | . . . 1 1 . . Exploded 3 | . . . . 3 . 3 Melee 1 | . . . . . 1 . Uniques/NPCs Destroyed 1 | . . . . . 1 . 8R-AWN (-9/Exiles) Combat | -11 -10 -10 -9 -9 -9 -8 -------- Run | Scr Mat Min Mat Min Exi Min Damage Taken 3365 | . 202 256 2092 199 97 519 Core 521 | . 12 99 277 29 23 81 Absorbed by Shields . | . . . . . . . Core Remaining (%) 77 | 100 . 55 . . . . Volleys Fired 275 | 18 35 26 152 13 . 31 Largest 2 | 2 2 2 2 2 . 2 Hottest 100 | 60 100 100 100 56 . 62 Shots Fired 519 | 36 68 49 279 25 . 62 Gun 485 | 36 66 48 265 22 . 48 Cannon 7 | . . . . . . 7 Launcher 10 | . . . . 3 . 7 Special 17 | . 2 1 14 . . . Kinetic 474 | 18 66 48 265 22 . 55 Thermal 35 | 18 2 1 14 . . . Explosive 3 | . . . . 3 . . Electromagnetic 7 | . . . . . . 7 Robot Hit Streak 25 | 11 7 15 25 10 . 10 Robot Miss Streak 8 | 5 4 8 6 2 . 1 Penetration Max . | . . . . . . . Secondary Targets 9 | . . . 8 1 . . Max Gunslinging Chain 1 | . . . 1 1 . . Shots Hit Robots 343 | 23 36 28 188 19 4 45 Core Hits 154 | 7 19 13 80 13 3 19 Critical Hits 2 | . . . 2 . . . Critical Kills . | . . . . . . . Critical Parts Destroyed 2 | . . . 2 . . . Melee Attacks 4 | . . . . . 4 . Impact . | . . . . . . . Slashing 4 | . . . . . 4 . Piercing . | . . . . . . . Sneak Attacks 1 | . . . . . 1 . Combat Hostiles . | . . . . . . . Follow-up Attacks . | . . . . . . . Damage Inflicted 6154 | 254 611 466 2901 618 249 1055 Guns 5081 | 254 611 466 2894 274 . 582 Cannons 104 | . . . . . . 104 Explosions 713 | . . . . 344 . 369 Melee 249 | . . . . . 249 . Ramming 7 | . . . 7 . . . Kinetic 5029 | 98 611 466 2894 274 . 686 Thermal 405 | 156 . . . 85 . 164 Explosive 259 | . . . . 259 . . Electromagnetic 205 | . . . . . . 205 Impact . | . . . . . . . Slashing 249 | . . . . . 249 . Piercing . | . . . . . . . Highest Corruption 5 | . . . 5 5 5 5 Average Corruption 4 | . . . 4 5 5 5 Corruption Purged . | . . . . . . . Effects 122 | . . . 59 24 26 13 Message Errors 26 | . . . 11 4 9 2 Matter Fused 36 | . . . 18 7 8 3 Heat Flow Errors 12 | . . . 7 3 1 1 Energy Discharges 12 | . . . 4 4 4 . Parts Rejected 1 | . . . . . . 1 Data Loss (minor) 16 | . . . 7 3 4 2 Data Loss (major) 1 | . . . 1 . . . Misfires 4 | . . . 1 1 . 2 Targeting Errors 9 | . . . 6 1 . 2 Weapon Failures 5 | . . . 4 1 . . Overload Shots . | . . . . . . . Overflow Damage 31 | . . . . 16 . 15 Projectiles 2 | . . . . . . 2 Explosions 29 | . . . . 16 . 13 Melee . | . . . . . . . Knockbacks 4 | . . . . . . 4 Impact . | . . . . . . . Kinetic 4 | . . . . . . 4 Secondary . | . . . . . . . Self-Inflicted Damage . | . . . . . . . Shots . | . . . . . . . Rammed 3 | . . . 3 . . . Targets Rammed 3 | . . . 3 . . . Kicked . | . . . . . . . Crushed . | . . . . . . . Highest Temperature 400 | 40 40 20 400 236 193 91 Average Temperature 98 | 23 9 6 131 73 97 38 Received Heat Transfer 1197 | . 117 78 672 51 . 279 Effects 4 | . . . 4 . . . Shutdowns 1 | . . . 1 . . . Energy Bleed 1 | . . . 1 . . . Interference 1 | . . . 1 . . . Short Circuit 1 | . . . 1 . . . Siege Activations . | . . . . . . . Robots Corrupted . | . . . . . . . Combat Hostiles . | . . . . . . . Parts Fried . | . . . . . . . Impact Corruptions . | . . . . . . . Robots Melted . | . . . . . . . Combat Hostiles . | . . . . . . . Parts Melted . | . . . . . . . Heat Transferred 700 | 350 . . . 100 . 250 Parts Sabotaged . | . . . . . . . Parts Stolen . | . . . . . . . Parts Stripped . | . . . . . . . Power Chain Reactions 3 | . . . . . . 3 Missiles Intercepted . | . . . . . . . Alert | -11 -10 -10 -9 -9 -9 -8 ------- Run | Scr Mat Min Mat Min Exi Min Peak Influence 524 | 25 174 180 524 314 . 164 Average Influence 208 | 10 63 101 321 202 . 39 Maximum Alert Level 2 | . . . 2 1 . . Low Security (%) 50 | 100 100 100 17 40 . 100 Level 1 32 | . . . 46 59 . . Level 2 16 | . . . 36 . . . Level 3 . | . . . . . . . Level 4 . | . . . . . . . Level 5 . | . . . . . . . High Security . | . . . . . . . Max Security . | . . . . . . . Squads Dispatched 9 | . 2 1 5 . . 1 Investigation 2 | . . 1 1 . . . Extermination . | . . . . . . . Reinforcement 7 | . 2 . 4 . . 1 Assault . | . . . . . . . Garrison . | . . . . . . . Intercept . | . . . . . . . Construction Impeded 1 | . . . . . . 1 Haulers Reinforced . | . . . . . . . Stealth | -11 -10 -10 -9 -9 -9 -8 --------- Run | Scr Mat Min Mat Min Exi Min Distress Signals 5 | . 1 . 4 . . . Communications Jammed . | . . . . . . . Distress Signals . | . . . . . . . Times Spotted 124 | . 15 10 71 14 1 13 Peak Tracking Total 9 | . 4 3 9 4 2 4 Tactical Retreats 19 | . 2 1 11 3 . 2 Traps | -11 -10 -10 -9 -9 -9 -8 ------- Run | Scr Mat Min Mat Min Exi Min Traps Triggered 1 | . . . 1 . . . Indirectly . | . . . . . . . Trap Hack Attempts . | . . . . . . . Triggered . | . . . . . . . Disarmed . | . . . . . . . Reprogrammed . | . . . . . . . Reused 1 | . . . . . 1 . Traps Extracted . | . . . . . . . Installed 4 | . . . . . 4 . Triggered 1 | . . . . . 1 . Exploded 1 | . . . . . 1 . Machines | -11 -10 -10 -9 -9 -9 -8 ---------- Run | Scr Mat Min Mat Min Exi Min Machines Disabled 3 | . 1 1 . 1 . . Max in Single Turn 1 | . 1 . . 1 . . Machines Sabotaged . | . . . . . . . Garrisons Compromised . | . . . . . . . Overloaded Fab Kills . | . . . . . . . Fab Network Shutdowns . | . . . . . . . Hacking | -11 -10 -10 -9 -9 -9 -8 --------- Run | Scr Mat Min Mat Min Exi Min Machines Accessed 14 | . 3 2 8 . 1 . Terminals 11 | . 3 1 7 . . . Fabricators . | . . . . . . . Repair Stations . | . . . . . . . Recycling Units 1 | . . . 1 . . . Scanalyzers . | . . . . . . . Garrison Access . | . . . . . . . Total Hacks 32 | . 12 3 16 . 1 . Successful 13 | . 8 1 3 . 1 . Failed 19 | . 4 2 13 . . . Catastrophic 3 | . 3 . . . . . Database Lockouts . | . . . . . . . Manual 12 | . 7 2 2 . 1 . Terminals 28 | . 12 2 14 . . . Fabricators . | . . . . . . . Repair Stations . | . . . . . . . Recycling Units 2 | . . . 2 . . . Scanalyzers . | . . . . . . . Garrison Access . | . . . . . . . Terminal Hacks 13 | . 8 1 3 . 1 . Part Schematic 2 | . 2 . . . . . Prototype ID Bank 1 | . 1 . . . . . Open Door 1 | . . 1 . . . . Unreport Threat 3 | . 2 . 1 . . . Locate Traps 2 | . 1 . 1 . . . Recall Investigation 1 | . . . 1 . . . Zone Layout 2 | . 2 . . . . . EX-Prototype ID Bank 1 | . . . . . 1 . Fabricator Hacks . | . . . . . . . Repair Station Hacks . | . . . . . . . Recycling Unit Hacks . | . . . . . . . Scanalyzer . | . . . . . . . Garrison Access Hacks . | . . . . . . . Unauthorized Hacks . | . . . . . . . Terminals . | . . . . . . . Fabricators . | . . . . . . . Repair Stations . | . . . . . . . Recycling Units . | . . . . . . . Scanalyzers . | . . . . . . . Garrison Access . | . . . . . . . Data Cores Recovered . | . . . . . . . Used . | . . . . . . . Hacking Detections 12 | . 3 1 8 . . . Full Trace Events 1 | . . . 1 . . . Feedback Events . | . . . . . . . Feedback Blocked . | . . . . . . . Robot Schematics Acquired . | . . . . . . . Robots Built . | . . . . . . . Matter . | . . . . . . . Time . | . . . . . . . Total Robot Build Rating . | . . . . . . . Part Schematics Acquired 2 | . 2 . . . . . Parts Built . | . . . . . . . Matter . | . . . . . . . Time . | . . . . . . . Total Part Build Rating . | . . . . . . . Parts Repaired . | . . . . . . . Time . | . . . . . . . Parts Recycled . | . . . . . . . Recycled Matter . | . . . . . . . Retrieved Matter . | . . . . . . . Retrieved Components . | . . . . . . . Parts Scanalyzed . | . . . . . . . Part Schematics Acquired . | . . . . . . . Parts Damaged . | . . . . . . . Bothacking | -11 -10 -10 -9 -9 -9 -8 ------------ Run | Scr Mat Min Mat Min Exi Min Used RIF Installer . | . . . . . . . Robots Hacked . | . . . . . . . Non-combat . | . . . . . . . Combat . | . . . . . . . Robot Hacks Applied . | . . . . . . . Relay Couplers Released . | . . . . . . . Robots Rewired . | . . . . . . . Allies Hacked . | . . . . . . . Hacks Repelled . | . . . . . . . Allies | -11 -10 -10 -9 -9 -9 -8 -------- Run | Scr Mat Min Mat Min Exi Min Total Allies 3 | . . 3 . . . . Largest Group 3 | . . 3 . . . . Highest-Rated Group 40 | . . 40 . . . . Highest-Rated Ally 16 | . . 16 . . . . Total Orders . | . . . . . . . Ally Attacks 9 | . . 9 . . . . Total Damage 106 | . . 106 . . . . Kills 2 | . . 2 . . . . Allies Corrupted . | . . . . . . . Allies Melted . | . . . . . . . Intel | -11 -10 -10 -9 -9 -9 -8 ------- Run | Scr Mat Min Mat Min Exi Min Robot Analysis Total . | . . . . . . . Derelict Logs Recovered 3 | . . 2 . 1 . . Drone Launches . | . . . . . . . Drone Recoveries . | . . . . . . . Exploration | -11 -10 -10 -9 -9 -9 -8 ------------- Run | Scr Mat Min Mat Min Exi Min Turns Passed 6099 | 149 544 547 2213 998 1186 462 Spaces Moved 3371 | 102 489 519 1019 511 562 169 Core 5 | 5 . . . . . . Treads 2144 | . . . 902 511 562 169 Legs . | . . . . . . . Wheels 1222 | 97 489 519 117 . . . Hover . | . . . . . . . Flight . | . . . . . . . Fastest Speed 50 | 50 80 80 80 172 152 212 Average Speed 144 | 78 80 81 152 184 199 212 Slowest Speed 212 | 80 80 90 172 192 212 212 Overloaded Moves . | . . . . . . . Propulsion Burnouts . | . . . . . . . Robots Hopped . | . . . . . . . Cave-ins Triggered . | . . . . . . . Exploration Rate (%) 71 | 4 88 99 94 98 72 44 Regions Visited 6 Branch Regions 4 Pre-discovered Areas 3 | . . 3 . . . . Known Exits Taken . | . . . . . . . Unknown Exits Taken 6 | 1 1 1 1 1 1 . Scrap Searched 4 | . . 3 . 1 . . Spaces Dug 17 | . 2 1 14 . . . Terrain Destroyed 74 | . 2 1 14 41 . 16 Melee . | . . . . . . . Projectile 18 | . 2 1 14 . . 1 AOE 56 | . . . . 41 . 15 Actions | -11 -10 -10 -9 -9 -9 -8 --------- Run | Scr Mat Min Mat Min Exi Min Total 4048 | 135 569 589 1373 540 630 212 Wait 182 | . 29 38 100 6 2 7 Move 3365 | 101 488 518 1018 510 561 169 Hop . | . . . . . . . Pick Up 86 | 8 3 2 30 8 34 1 Fast Attach 30 | 6 4 1 15 . 3 1 Attach 13 | 1 . 1 7 2 2 . Detach 2 | . . . . . 2 . Swap 30 | . 4 2 18 1 3 2 Drop 54 | 1 6 1 30 . 15 1 Fire 275 | 18 35 26 152 13 . 31 Melee 4 | . . . . . 4 . Ram . | . . . . . . . Kick . | . . . . . . . Crush 3 | . . . 3 . . . Escape Stasis . | . . . . . . . Rewire . | . . . . . . . Trap 4 | . . . . . 4 . Miscellaneous . | . . . . . . . Route ------- -11/Scrapyard -10/Materials (discovered 4 exits: *Mat x2 / *Min x2) -10/Mines (discovered 2 exits: *Mat x2) -9/Materials (discovered 4 exits: [*Mat x3] / [*Min]) -9/Mines (discovered 3 exits: [*Mat x2] / *Exi) -9/Exiles -8/Mines History --------- Turn | Location | Event 9 | -11/Scrapyard | Discovered new exit (range 16) 150 | -11/Scrapyard | Entered Materials 199 | -10/Materials | Discovered new exit (range 8) 221 | -10/Materials | Discovered new exit (range 8) 314 | -10/Materials | Build established: Mutant 319 | -10/Materials | Discovered new exit (range 15) 493 | -10/Materials | Discovered new exit (range 16) 694 | -10/Materials | Entered Mines 723 | -10/Mines | Met a Derelict bent on vengeance 756 | -10/Mines | Discovered new exit (range 13) 770 | -10/Mines | Assisted by bots powering up and referring to "LRC-V3" 824 | -10/Mines | Discovered new exit (range 10) 826 | -10/Mines | Learned location of Mines (-8) 928 | -10/Mines | Learned location of Storage (-8) 968 | -10/Mines | Met a Derelict shopkeep closing up shop 1241 | -10/Mines | Entered Materials 1241 | -9/Materials | Evolved 2 slots: Utility x2 1430 | -9/Materials | Destroyed 7 combat bots 1437 | -9/Materials | Lost 5 parts (1p2n2w) 1715 | -9/Materials | Discovered new exit (range 6) 2031 | -9/Materials | Discovered new exit (range 15) 2223 | -9/Materials | Core integrity fell below 50% 2387 | -9/Materials | Discovered new exit (range 3) 3309 | -9/Materials | Discovered new exit (range 16) 3454 | -9/Materials | Entered Mines 3556 | -9/Mines | Build established: Hauler-Mutant 3705 | -9/Mines | Discovered new exit (range 5) 3722 | -9/Mines | Deemed a non-threat by the Exiles lab entrance 3722 | -9/Mines | Discovered new exit (range 5) 3786 | -9/Mines | Found a hidden stash of uninstalled traps 3830 | -9/Mines | Discovered new exit (range 7) 4208 | -9/Mines | Received a Rocket Launcher from a helpful Derelict 4452 | -9/Mines | Entered Exiles 4497 | -9/Exiles | Met 8R-AWN 4528 | -9/Exiles | Met EX-HEX 4634 | -9/Exiles | Met EX-DEC 5261 | -9/Exiles | Met EX-BIN 5291 | -9/Exiles | Aligned with FarCom system 5293 | -9/Exiles | Given EX-Vault access code 5342 | -9/Exiles | Opened EX-Vault 5356 | -9/Exiles | Found AWS/Autocannon 5362 | -9/Exiles | Found XL Autogun Array 5365 | -9/Exiles | Found Longsword +1 5408 | -9/Exiles | Warned to stay clear of 0b10 Research branches 5430 | -9/Exiles | Exiles lab attacked by MAIN.C 5574 | -9/Exiles | Discovered new exit (range 12) 5592 | -9/Exiles | Attacked by the Exiles 5593 | -9/Exiles | Core integrity fell below 20% 5597 | -9/Exiles | Destroyed 8R-AWN 5601 | -9/Exiles | Found Prototype Protection 5608 | -9/Exiles | Found Prototype Protection 5614 | -9/Exiles | Found Prototype Device 5620 | -9/Exiles | Found Prototype Ballistic Gun 5626 | -9/Exiles | Found Prototype Ballistic Gun 5635 | -9/Exiles | Identified 8R-AWN's Boregun (x2) 5638 | -9/Exiles | Stole three prototypes: XL Autogun Array, AWS/Autocannon, Longsword +1 5638 | -9/Exiles | Entered Mines 6100 | -8/Mines | Destroyed by G-47 Trooper with Particle Gun Last Messages --------------- 06063_ System corrupted: Imp. Assault Rifle targeting data glitched. 06064_ U-05 Engineer lays Concrete. 06066_ G-50 Soldier IFF system glitched. 06066_ G-47 Trooper destroyed. 06067_ U-05 Engineer lays Concrete. 06069_ U-05 Engineer builds a Wall. 06069_ G-50 Soldier knocked back. 06074_ U-05 Engineer lays Concrete. 06075_ Destroyed Hvy. Laser. 06075_ G-50 Soldier knocked back. 06076_ U-05 Engineer builds a Wall. 06080_ U-05 Engineer lays Concrete. 06081_ U-05 Engineer builds a Wall. 06083_ System corrupted: Matter fused (-10). 06086_ U-05 Engineer lays Concrete. 06088_ U-05 Engineer builds a Wall. 06091_ U-05 Engineer lays Concrete. 06098_ G-47 Trooper knocked back. 06100_ System corrupted: Imp. Light Cannon rejected. 06100_ U-05 Engineer builds a Wall. Map ----- +----------------------------------------------------+ | ?????????######= #### #?# #?####???# " | | ?????????# ! ##??# #?# ### ##??# ### | | ???####### ####= #???# #?### ## #??# #?# " | | ??## [## #### ##???# #???# ##?# #?# " | | ??# ### ##???? #???# ### #?# " | | ???# ### #?####????? #???#### """ #?# | | ???## ##?# #?????????? ?????# """ #####?### | | ????# ! #### ########## ?????# """ #???????? | | ????# ????# #??????? | | ????## #####%##### $ ??? #?????? | | ?????###???# ###?? #??? ???? ?????? | | ??????????## ### #?????????? ## ????? | | ??????????# ##????????? ?# ???? | | ??????????# #????????? ?# ###### ##??? | | ??????????# #????##### ?# #?????##???? | | ??????????# ##???? ?# #??????????? | | ??????????# ##????? ??? ? #??????????? | | ??????????## "#?????? #??? ??# ?#??????????? | | ???????????#####u%##?????? #??????# ????????????? | | ???????????????##= ##?#### #??????? ????????????? | | ????????????????# ### ##???????????????????? | | ????????????????## %[ #???????????????????? | | ?????????????????## #???????????????????? | | ?????????????????#" g #???????????????????? | | ????????????????## g #???????????????????? | | ??????????????### ####@ ##???????????????????? | | ?????????????## ##??#####????????????????????? | | ????????????## #????????????????????????????? | | ????????????# ##????????????????????????????? | | ????????????# ##?????????????????????????????? | | ????????????# ##??????????????????????????????? | | ????????????# ##???????????????????????????????? | | ????????????# ##????????????????????????????????? | | ???????????## #?????????????????????????????????? | | ???????????# ##????????????????????????????????? | | ???????????## ##????????????????????????????????? | | ???????????## ##????????????????????????????????? | | ???????????#=[%!##???????????????????????????????? | | ???????????#= =* #???????????????????????????????? | | ???????????# %###???????????????????????????????? | | ???????????# %##????????????????????????????????? | | ???????????# = ###??????????????????????????????? | | ???????????## # #?????????????????????? | | ????????????## #?????????????????????? | | ?????????????# #### #?????????????????????? | | ?????????????# #???????????????????????????? | | ????????????? ##???????????????????????????? | | ????????????? #????????????????????????????? | | ????????????? ##????????????????????????????? | | ????????????? ## #?????????????????????????????? | +----------------------------------------------------+ Best States ------------- Heat Dissipation 38 Energy Generation 14 Energy Capacity 265 Matter Stores 350 Matter Capacity 350 Sight Range 16 Terrain Scan Range 14 Terrain Scan Density 60 Armor Coverage 300 Resistance: KI 20 Evasion (%) 44 Recoil Reduction 2 Item Schematics ----------------- Hcp. Storage Unit | -10/Materials | Hacked Lgt. Treads | -10/Materials | Hacked Robot Schematics ------------------ None Fabricated ------------ Nothing Alien Tech Used ----------------- None Achievements -------------- None Challenges ------------ None Game ------ Seed VisualCloakScrap Manual? 0 Play Time 00:40:44 Cumulative 171.3 hours Start 2020.09.02 @ 09:16:32 End 2020.09.02 @ 10:11:01 Sessions 1 Manual Loads 0 Difficulty Rogue Special Mode None Game No. 198 Rogue 198 Adventurer 0 Explorer 0 Win Type - Total 2 Types 2/0/0/0/0/0/0 Lore% 62 Gallery% 73 Achievement% 54 Wizard Run 0 Options --------- ASCII 0 Keyboard 0 Movement Numpad Keybinds 0 Fullscreen 2 Font 24/Smallcaps Map View 76x50 Tactical HUD 1 Map Filters NONE Filters NONE Steam 1 RUN: 803c492c-7598-4876-8bdf-7089307ea994